fUSD/lending_fUSD_20250113
["ID","MTS","AMOUNT","RATE_DAILY","PERIOD"]
[348765620,1736776244666,-654.85,0.00010269,2]
[348765621,1736776244675,-876.4,0.00010269,2]
[348765622,1736776244685,-500.0,0.00010269,2]
[348765623,1736776244694,-543.55,0.00010269,2]
[348765624,1736776244704,-1479.01,0.00010269,2]
[348765625,1736776244714,-500.0,0.00010269,2]
[348765626,1736776244723,-500.0,0.00010269,2]
[348765627,1736776244732,-500.0,0.00010269,2]
[348765628,1736776244742,-1079.21,0.00010269,2]
[348765629,1736776244751,-500.0,0.0001027,2]
[348765630,1736776244761,-500.0,0.0001027,2]
[348765631,1736776244771,-500.0,0.0001027,2]
[348765632,1736776244780,-500.0,0.0001027,2]
[348765633,1736776244791,-565.63032663,0.0001027,2]
[348765634,1736776244801,-500.0,0.0001027,2]
[348765635,1736776244811,-500.0,0.0001027,2]
[348765636,1736776244822,-500.0,0.0001027,2]
[348765637,1736776244831,-500.0,0.0001027,2]
[348765638,1736776244841,-391.69307273,0.0001027,2]
[348765639,1736776244850,-500.0,0.0001027,2]
[348765640,1736776244860,-500.0,0.0001027,2]
[348765641,1736776244870,-500.0,0.0001027,2]
[348765642,1736776244880,-500.0,0.0001027,2]
[348765643,1736776244889,-500.0,0.0001027,2]
[348765644,1736776244898,-500.0,0.0001027,2]
[348765645,1736776244907,-500.0,0.0001027,2]
[348765646,1736776244918,-500.0,0.0001027,2]
[348765647,1736776244927,-500.0,0.0001027,2]
[348765648,1736776244938,-500.0,0.0001027,2]
[348765649,1736776244947,-500.0,0.0001027,2]
[348765650,1736776244956,-500.0,0.0001027,2]
[348765651,1736776244966,-637.59,0.0001027,2]
[348765652,1736776244975,-500.0,0.0001027,2]
[348765653,1736776244985,-500.0,0.0001027,2]
[348765654,1736776244994,-371.37,0.0001027,2]
[348765655,1736776245004,-500.0,0.0001027,2]
[348765656,1736776245014,-500.0,0.0001027,2]
[348765657,1736776245024,-500.0,0.0001027,2]
[348765658,1736776245035,-500.0,0.0001027,2]
[348765659,1736776245044,-500.0,0.0001027,2]
[348765660,1736776245054,-500.0,0.0001027,2]
[348765661,1736776245063,-500.0,0.0001027,2]
[348765662,1736776245074,-500.0,0.0001027,2]
[348765663,1736776245083,-500.0,0.0001027,2]
[348765664,1736776245093,-500.0,0.0001027,2]
[348765665,1736776245104,-500.0,0.0001027,2]
[348765666,1736776245114,-500.0,0.0001027,2]
[348765667,1736776245123,-500.0,0.0001027,2]
[348765668,1736776245134,-500.0,0.0001027,2]
[348765669,1736776245144,-500.0,0.0001027,2]
[348765670,1736776245153,-500.0,0.0001027,2]
[348765671,1736776245163,-500.0,0.0001027,2]
[348765672,1736776245172,-500.0,0.0001027,2]
[348765673,1736776245183,-500.0,0.0001027,2]
[348765674,1736776245193,-500.0,0.0001027,2]
[348765675,1736776245203,-380.87,0.0001027,2]
[348765676,1736776245213,-500.0,0.0001027,2]
[348765677,1736776245223,-500.0,0.0001027,2]
[348765678,1736776245233,-500.0,0.0001027,2]
[348765679,1736776245242,-3474.46,0.0001027,2]
[348765680,1736776245252,-500.0,0.0001027,2]
[348765681,1736776245262,-500.0,0.0001027,2]
[348765682,1736776245271,-500.0,0.0001027,2]
[348765683,1736776245281,-500.0,0.0001027,2]
[348765684,1736776245291,-509.94,0.0001027,2]
[348765685,1736776245301,-789.13,0.0001027,2]
[348765686,1736776245310,-896.88,0.0001027,2]
[348765687,1736776245320,-1512.56,0.0001027,2]
[348765688,1736776245329,-500.0,0.0001027,2]
[348765689,1736776245338,-500.0,0.0001027,2]
[348765690,1736776245348,-2572.0,0.0001027,2]
[348765691,1736776245357,-500.0,0.0001027,2]
[348765692,1736776245366,-586.50064044,0.0001027,2]
[348765693,1736776245375,-500.0,0.0001027,2]
[348765694,1736776245384,-761.07,0.0001027,2]
[348765695,1736776245394,-500.0,0.0001027,2]
[348765696,1736776245403,-500.0,0.0001027,2]
[348765697,1736776245412,-1219.72,0.0001027,2]
[348765698,1736776245422,-882.41,0.0001027,2]
[348765699,1736776245431,-500.0,0.0001027,2]
[348765700,1736776245441,-500.0,0.0001027,2]
[348765701,1736776245451,-1086.13,0.0001027,2]
[348765702,1736776245462,-500.0,0.0001027,2]
[348765703,1736776245472,-257.6899993,0.0001027,2]
[348765704,1736776245482,-500.0,0.0001027,2]
[348765705,1736776245492,-2653.16,0.0001027,2]
[348765706,1736776245503,-619.64079383,0.0001027,2]
[348765707,1736776245515,-509.66435466,0.00010271,2]
[348765709,1736776245524,-500.0,0.00010271,2]
[348765710,1736776245534,-162.27304497,0.00010271,2]
[348765711,1736776245543,-500.0,0.00010271,2]
[348765712,1736776245554,-500.0,0.00010271,2]
[348765713,1736776245563,-500.0,0.00010271,2]
[348765714,1736776245573,-500.0,0.00010271,2]
[348765715,1736776245582,-500.0,0.00010271,2]
[348765716,1736776245591,-500.0,0.00010271,2]
[348765717,1736776245602,-500.0,0.00010271,2]
[348765718,1736776245612,-484.88102396,0.00010271,2]
[348765719,1736776245622,-500.0,0.00010271,2]
[348765720,1736776245632,-500.0,0.00010271,2]
[348765721,1736776245642,-500.0,0.00010271,2]
[348765722,1736776245651,-500.0,0.00010271,2]
[348765723,1736776245661,-500.0,0.00010271,2]
[348765724,1736776245670,-500.0,0.00010271,2]
[348765725,1736776245680,-500.0,0.00010271,2]
[348765726,1736776245689,-500.0,0.00010271,2]
[348765727,1736776245699,-500.0,0.00010271,2]
[348765728,1736776245708,-500.0,0.00010271,2]
[348765729,1736776245717,-500.0,0.00010271,2]
[348765730,1736776245727,-533.11,0.00010271,2]
[348765731,1736776245736,-500.0,0.00010271,2]
[348765732,1736776245746,-500.0,0.00010271,2]
[348765733,1736776245756,-501.07,0.00010271,2]
[348765734,1736776245765,-500.0,0.00010271,2]
[348765735,1736776245774,-575.22,0.00010271,2]
[348765736,1736776245783,-500.0,0.00010271,2]
[348765737,1736776245793,-286.96890222,0.00010271,2]
[348765738,1736776245802,-583.30620687,0.00010271,2]
[348765739,1736776245812,-500.0,0.00010271,2]
[348765740,1736776245822,-293.57103379,0.00010271,2]
[348765741,1736776245831,-500.0,0.00010271,2]
[348765742,1736776245840,-500.0,0.00010271,2]
[348765743,1736776245850,-500.0,0.00010271,2]
[348765744,1736776245860,-500.0,0.00010271,2]
[348765745,1736776245869,-500.0,0.00010271,2]
[348765746,1736776245878,-500.0,0.00010271,2]
[348765747,1736776245888,-500.0,0.00010271,2]
[348765748,1736776245897,-631.75,0.00010271,2]
[348765749,1736776245907,-500.0,0.00010271,2]
[348765750,1736776245916,-500.0,0.00010271,2]
[348765751,1736776245926,-500.0,0.00010271,2]
[348765752,1736776245936,-500.0,0.00010271,2]
[348765753,1736776245946,-500.0,0.00010271,2]
[348765754,1736776245955,-544.1,0.00010271,2]
[348765755,1736776245965,-500.0,0.00010271,2]
[348765756,1736776245974,-500.0,0.00010271,2]
[348765757,1736776245984,-500.0,0.00010271,2]
[348765758,1736776245994,-527.28,0.00010271,2]
[348765759,1736776246003,-500.0,0.00010271,2]
[348765760,1736776246013,-500.0,0.00010271,2]
[348765761,1736776246023,-500.0,0.00010271,2]
[348765763,1736776246034,-500.0,0.00010271,2]
[348765765,1736776246044,-500.0,0.00010271,2]
[348765766,1736776246054,-500.0,0.00010271,2]
[348765767,1736776246064,-500.0,0.00010271,2]
[348765768,1736776246075,-500.0,0.00010271,2]
[348765769,1736776246085,-613.61,0.00010271,2]
[348765771,1736776246095,-500.0,0.00010271,2]
[348765772,1736776246107,-500.0,0.00010271,2]
[348765773,1736776246117,-500.0,0.00010271,2]
[348765774,1736776246126,-175.70192381,0.00010271,2]
[348765775,1736776246136,-500.0,0.00010271,2]
[348765776,1736776246147,-500.0,0.00010271,2]
[348765778,1736776246156,-500.0,0.00010271,2]
[348765779,1736776246166,-500.0,0.00010271,2]
[348765780,1736776246176,-525.92,0.00010271,2]
[348765781,1736776246186,-500.0,0.00010271,2]
[348765782,1736776246196,-500.0,0.00010271,2]
[348765783,1736776246205,-500.0,0.00010271,2]
[348765784,1736776246215,-500.0,0.00010271,2]
[348765785,1736776246225,-500.0,0.00010271,2]
[348765786,1736776246235,-500.0,0.00010271,2]
[348765787,1736776246246,-500.0,0.00010271,2]
[348765788,1736776246255,-500.0,0.00010271,2]
[348765789,1736776246266,-500.0,0.00010271,2]
[348765790,1736776246276,-500.0,0.00010271,2]
[348765791,1736776246287,-500.0,0.00010271,2]
[348765792,1736776246297,-457.73865109,0.00010271,2]
[348765793,1736776246307,-514.31,0.00010271,2]
[348765794,1736776246316,-500.0,0.00010271,2]
[348765795,1736776246326,-500.0,0.00010271,2]
[348765796,1736776246336,-500.0,0.00010271,2]
[348765797,1736776246346,-500.0,0.00010271,2]
[348765798,1736776246356,-500.0,0.00010271,2]
[348765799,1736776246365,-500.0,0.00010271,2]
[348765800,1736776246375,-500.0,0.00010271,2]
[348765801,1736776246386,-500.0,0.00010271,2]
[348765802,1736776246396,-500.0,0.00010271,2]
[348765803,1736776246405,-500.0,0.00010271,2]
[348765804,1736776246415,-500.0,0.00010271,2]
[348765805,1736776246425,-500.0,0.00010271,2]
[348765806,1736776246435,-500.0,0.00010271,2]
[348765807,1736776246444,-500.0,0.00010271,2]
[348765808,1736776246615,-500.0,0.00010271,2]
[348765809,1736776246626,-500.0,0.00010272,2]
[348765810,1736776246636,-500.0,0.00010272,2]
[348765811,1736776246646,-597.97777384,0.00010272,2]
[348765812,1736776246655,-500.0,0.00010272,2]
[348765813,1736776246665,-500.0,0.00010272,2]
[348765814,1736776246675,-500.0,0.00010272,2]
[348765815,1736776246684,-500.0,0.00010272,2]
[348765816,1736776246694,-500.0,0.00010272,2]
[348765817,1736776246703,-500.0,0.00010272,2]
[348765818,1736776246713,-500.0,0.00010272,2]
[348765819,1736776246723,-500.0,0.00010272,2]
[348765820,1736776246732,-500.0,0.00010272,2]
[348765821,1736776246742,-500.0,0.00010272,2]
[348765822,1736776246751,-500.0,0.00010272,2]
[348765823,1736776246760,-500.0,0.00010272,2]
[348765824,1736776246770,-500.0,0.00010272,2]
[348765825,1736776246780,-500.0,0.00010272,2]
[348765826,1736776246791,-500.0,0.00010272,2]
[348765827,1736776246800,-500.0,0.00010272,2]
[348765828,1736776246810,-500.0,0.00010272,2]
[348765829,1736776246819,-500.0,0.00010272,2]
[348765830,1736776246829,-500.0,0.00010272,2]
[348765831,1736776246838,-500.0,0.00010272,2]
[348765832,1736776246848,-500.0,0.00010272,2]
[348765833,1736776246857,-500.0,0.00010272,2]
[348765834,1736776246867,-512.41579649,0.00010272,2]
[348765835,1736776246876,-500.0,0.00010272,2]
[348765836,1736776246886,-500.0,0.00010272,2]
[348765837,1736776246895,-263.68541536,0.00010272,2]
[348765838,1736776246904,-500.0,0.00010272,2]
[348765839,1736776246914,-500.0,0.00010272,2]
[348765840,1736776246924,-500.0,0.00010272,2]
[348765841,1736776246934,-483.96423195,0.00010272,2]
[348765842,1736776246944,-507.62,0.00010272,2]
[348765843,1736776246954,-500.0,0.00010272,2]
[348765844,1736776246965,-500.0,0.00010272,2]
[348765845,1736776246975,-500.0,0.00010272,2]
[348765846,1736776246985,-500.0,0.00010272,2]
[348765847,1736776246995,-500.0,0.00010272,2]
[348765848,1736776247004,-500.0,0.00010272,2]
[348765849,1736776247013,-500.0,0.00010272,2]
[348765850,1736776247023,-500.0,0.00010272,2]
[348765851,1736776247033,-500.0,0.00010272,2]
[348765852,1736776247043,-500.0,0.00010272,2]
[348765853,1736776247052,-500.0,0.00010272,2]
[348765854,1736776247062,-500.0,0.00010272,2]
[348765855,1736776247072,-500.0,0.00010272,2]
[348765856,1736776247082,-500.0,0.00010272,2]
[348765857,1736776247091,-500.0,0.00010272,2]
[348765858,1736776247103,-500.0,0.00010272,2]
[348765859,1736776247114,-500.0,0.00010272,2]
[348765860,1736776247124,-500.0,0.00010272,2]
[348765861,1736776247134,-1116.54,0.00010273,2]
[348765862,1736776247145,-1473.48,0.00010273,2]
[348765863,1736776247155,-1006.4,0.00010273,2]
[348765864,1736776247165,-773.79,0.00010273,2]
[348765865,1736776247175,-687.73825975,0.00010283,2]
[348765866,1736776247186,-289.87,0.00010351,2]
[348765867,1736776247196,-687.73825975,0.00010397,2]
[348765868,1736776247205,-830.15,0.00010423,2]
[348765869,1736776247215,-1936.63,0.00010443,2]
[348765870,1736776247224,-500.0,0.00010443,2]
[348765871,1736776247234,-1858.87,0.00010443,2]
[348765872,1736776247243,-500.0,0.00010443,2]
[348765873,1736776247253,-500.0,0.00010443,2]
[348765874,1736776247262,-1140.67258345,0.00010474,3]
[348765875,1736776247272,-687.73825975,0.0001051,2]
[348765876,1736776247281,-705.48,0.00010542,2]
[348765877,1736776247292,-500.0,0.00010542,2]
[348765878,1736776247301,-685.75,0.00010542,2]
[348765879,1736776247311,-500.0,0.00010543,2]
[348765880,1736776247321,-500.0,0.00010543,2]
[348765881,1736776247331,-1565.28,0.00010543,2]
[348765882,1736776247341,-500.0,0.00010543,2]
[348765883,1736776247351,-500.0,0.00010543,2]
[348765884,1736776247361,-500.0,0.00010543,2]
[348765885,1736776247371,-1938.55,0.00010543,2]
[348765886,1736776247380,-614.34,0.00010543,2]
[348765887,1736776247390,-500.0,0.00010543,2]
[348765888,1736776247400,-652.92,0.00010543,2]
[348765889,1736776247409,-893.86,0.00010543,2]
[348765890,1736776247419,-902.95,0.00010543,2]
[348765891,1736776247429,-596.76,0.00010543,2]
[348765892,1736776247438,-1883.33,0.00010543,2]
[348765893,1736776247447,-1014.93,0.00010543,2]
[348765894,1736776247457,-1197.82,0.00010543,2]
[348765895,1736776247467,-1917.84,0.00010543,2]
[348765896,1736776247476,-1454.9,0.00010543,2]
[348765897,1736776247485,-2653.24,0.00010543,2]
[348765898,1736776247494,-934.46,0.00010543,2]
[348765899,1736776247504,-500.0,0.00010543,2]
[348765900,1736776247514,-835.85,0.00010543,2]
[348765901,1736776247523,-500.0,0.00010543,2]
[348765902,1736776247532,-500.0,0.00010543,2]
[348765903,1736776247543,-903.99,0.00010543,2]
[348765904,1736776247552,-703.43,0.00010543,2]
[348765905,1736776247562,-946.03,0.00010543,2]
[348765906,1736776247571,-1295.35,0.00010543,2]
[348765907,1736776247581,-575.35,0.00010543,2]
[348765908,1736776247590,-500.0,0.00010543,2]
[348765909,1736776247601,-544.9,0.00010543,2]
[348765910,1736776247612,-1654.45,0.00010543,2]
[348765911,1736776247622,-1000.0,0.00010543,2]
[348765912,1736776247631,-1221.37,0.00010543,2]
[348765913,1736776247641,-1929.43,0.00010543,2]
[348765914,1736776247650,-500.0,0.00010543,2]
[348765915,1736776247660,-1057.32,0.00010543,2]
[348765916,1736776247669,-500.0,0.00010543,2]
[348765917,1736776247679,-735.37,0.00010543,2]
[348765918,1736776247688,-500.0,0.00010543,2]
[348765919,1736776247698,-1529.81,0.00010543,2]
[348765920,1736776247707,-918.13,0.00010543,2]
[348765921,1736776247717,-993.5,0.00010543,2]
[348765922,1736776247726,-701.63,0.00010543,2]
[348765923,1736776247736,-500.0,0.00010543,2]
[348765924,1736776247746,-500.0,0.00010543,2]
[348765925,1736776247755,-1208.05,0.00010543,2]
[348765926,1736776247765,-500.0,0.00010543,2]
[348765927,1736776247775,-1040.14,0.00010543,2]
[348765928,1736776247784,-500.0,0.00010543,2]
[348765929,1736776247793,-500.0,0.00010543,2]
[348765930,1736776247802,-654.85,0.00010543,2]
[348765931,1736776247811,-876.4,0.00010543,2]
[348765932,1736776247821,-500.0,0.00010543,2]
[348765933,1736776247830,-543.55,0.00010543,2]
[348765934,1736776247840,-1479.01,0.00010543,2]
[348765935,1736776247850,-500.0,0.00010543,2]
[348765936,1736776247859,-1079.21,0.00010543,2]
[348765937,1736776247868,-500.0,0.00010543,2]
[348765938,1736776247878,-500.0,0.00010544,2]
[348765939,1736776247887,-500.0,0.00010544,2]
[348765940,1736776247896,-500.0,0.00010544,2]
[348765941,1736776247906,-500.0,0.00010544,2]
[348765942,1736776247915,-500.0,0.00010544,2]
[348765943,1736776247925,-500.0,0.00010544,2]
[348765944,1736776247935,-500.0,0.00010544,2]
[348765945,1736776247944,-500.0,0.00010544,2]
[348765946,1736776247954,-500.0,0.00010544,2]
[348765947,1736776247964,-500.0,0.00010544,2]
[348765948,1736776247973,-500.0,0.00010544,2]
[348765949,1736776247983,-500.0,0.00010544,2]
[348765950,1736776247992,-500.0,0.00010544,2]
[348765951,1736776248002,-500.0,0.00010544,2]
[348765952,1736776248012,-500.0,0.00010544,2]
[348765953,1736776248022,-500.0,0.00010544,2]
[348765954,1736776248032,-500.0,0.00010544,2]
[348765955,1736776248043,-500.0,0.00010544,2]
[348765956,1736776248053,-373.98,0.00010544,2]
[348765957,1736776248062,-500.0,0.00010544,2]
[348765958,1736776248072,-500.0,0.00010544,2]
[348765959,1736776248082,-500.0,0.00010544,2]
[348765960,1736776248092,-500.0,0.00010544,2]
[348765961,1736776248104,-500.0,0.00010544,2]
[348765962,1736776248115,-456.43,0.00010544,2]
[348765963,1736776248126,-500.0,0.00010544,2]
[348765964,1736776248136,-500.0,0.00010544,2]
[348765965,1736776248147,-500.0,0.00010544,2]
[348765966,1736776248158,-500.0,0.00010544,2]
[348765967,1736776248168,-718.94,0.00010544,2]
[348765968,1736776248181,-500.0,0.00010544,2]
[348765969,1736776248192,-500.0,0.00010544,2]
[348765970,1736776248202,-3474.46,0.00010544,2]
[348765971,1736776248212,-500.0,0.00010544,2]
[348765972,1736776248223,-886.08,0.00010544,2]
[348765973,1736776248233,-500.0,0.00010544,2]
[348765974,1736776248244,-500.0,0.00010544,2]
[348765975,1736776248254,-789.13,0.00010544,2]
[348765976,1736776248265,-896.88,0.00010544,2]
[348765977,1736776248275,-965.98,0.00010544,2]
[348765978,1736776248285,-1512.56,0.00010544,2]
[348765979,1736776248295,-500.0,0.00010544,2]
[348765980,1736776248304,-500.0,0.00010544,2]
[348765981,1736776248314,-1258.56,0.00010544,2]
[348765982,1736776248324,-2572.0,0.00010544,2]
[348765983,1736776248334,-500.0,0.00010544,2]
[348765984,1736776248343,-500.0,0.00010544,2]
[348765985,1736776248353,-761.07,0.00010544,2]
[348765986,1736776248363,-1619.16,0.00010544,2]
[348765987,1736776248373,-500.0,0.00010544,2]
[348765988,1736776248383,-500.0,0.00010544,2]
[348765989,1736776248393,-1219.72,0.00010544,2]
[348765990,1736776248402,-4519.27,0.00010544,2]
[348765991,1736776248412,-882.41,0.00010544,2]
[348765992,1736776248422,-1086.13,0.00010544,2]
[348765993,1736776248432,-542.09,0.00010544,2]
[348765994,1736776248442,-500.0,0.00010544,2]
[348765995,1736776248451,-2653.16,0.00010544,2]
[348765996,1736776248461,-984.34,0.00010544,2]
[348765997,1736776248470,-500.0,0.00010545,2]
[348765998,1736776248481,-500.0,0.00010545,2]
[348765999,1736776248491,-500.0,0.00010545,2]
[348766000,1736776248502,-500.0,0.00010545,2]
[348766001,1736776248511,-500.0,0.00010545,2]
[348766002,1736776248520,-500.0,0.00010545,2]
[348766003,1736776248531,-500.0,0.00010545,2]
[348766004,1736776248541,-500.0,0.00010545,2]
[348766005,1736776248551,-500.0,0.00010545,2]
[348766006,1736776248560,-500.0,0.00010545,2]
[348766007,1736776248570,-500.0,0.00010545,2]
[348766008,1736776248580,-500.0,0.00010545,2]
[348766009,1736776248590,-500.0,0.00010545,2]
[348766010,1736776248599,-533.11,0.00010545,2]
[348766011,1736776248609,-500.0,0.00010545,2]
[348766012,1736776248618,-500.0,0.00010545,2]
[348766013,1736776248628,-575.22,0.00010545,2]
[348766014,1736776248638,-500.0,0.00010545,2]
[348766015,1736776248648,-500.0,0.00010545,2]
[348766016,1736776248658,-500.0,0.00010545,2]
[348766017,1736776248667,-500.0,0.00010545,2]
[348766018,1736776248677,-500.0,0.00010545,2]
[348766019,1736776248688,-500.0,0.00010545,2]
[348766020,1736776248698,-631.75,0.00010545,2]
[348766021,1736776248708,-500.0,0.00010545,2]
[348766022,1736776248718,-500.0,0.00010545,2]
[348766023,1736776248727,-500.0,0.00010545,2]
[348766024,1736776248737,-500.0,0.00010545,2]
[348766025,1736776248747,-544.1,0.00010545,2]
[348766026,1736776248757,-500.0,0.00010545,2]
[348766027,1736776248766,-500.0,0.00010545,2]
[348766028,1736776248776,-527.28,0.00010545,2]
[348766029,1736776248785,-500.0,0.00010545,2]
[348766030,1736776248795,-471.31617876,0.00010545,2]
[348766031,1736776248805,-500.0,0.00010545,2]
[348766032,1736776248816,-500.0,0.00010545,2]
[348766033,1736776248826,-500.0,0.00010545,2]
[348766034,1736776248835,-500.0,0.00010545,2]
[348766035,1736776248845,-613.07561979,0.00010545,2]
[348766036,1736776248855,-613.61,0.00010545,2]
[348766037,1736776248865,-500.0,0.00010545,2]
[348766038,1736776248876,-500.0,0.00010545,2]
[348766039,1736776248886,-500.0,0.00010545,2]
[348766040,1736776248896,-500.0,0.00010545,2]
[348766041,1736776248907,-500.0,0.00010545,2]
[348766042,1736776248917,-500.0,0.00010545,2]
[348766043,1736776248927,-500.0,0.00010545,2]
[348766044,1736776248937,-525.92,0.00010545,2]
[348766045,1736776248947,-500.0,0.00010545,2]
[348766046,1736776248957,-500.0,0.00010545,2]
[348766047,1736776248967,-500.0,0.00010545,2]
[348766048,1736776248977,-500.0,0.00010545,2]
[348766049,1736776248987,-500.0,0.00010545,2]
[348766050,1736776248998,-500.0,0.00010545,2]
[348766051,1736776249008,-500.0,0.00010545,2]
[348766052,1736776249018,-500.0,0.00010545,2]
[348766053,1736776249027,-500.0,0.00010545,2]
[348766054,1736776249038,-500.0,0.00010545,2]
[348766055,1736776249098,-500.0,0.00010545,2]
[348766056,1736776249112,-514.31,0.00010545,2]
[348766057,1736776249123,-500.0,0.00010545,2]
[348766058,1736776249133,-500.0,0.00010545,2]
[348766059,1736776249143,-500.0,0.00010545,2]
[348766060,1736776249154,-500.0,0.00010545,2]
[348766061,1736776249164,-500.0,0.00010545,2]
[348766062,1736776249174,-500.0,0.00010545,2]
[348766063,1736776249184,-500.0,0.00010545,2]
[348766064,1736776249195,-500.0,0.00010545,2]
[348766065,1736776249205,-500.0,0.00010545,2]
[348766066,1736776249215,-500.0,0.00010545,2]
[348766067,1736776249226,-500.0,0.00010546,2]
[348766068,1736776249236,-223.66004484,0.00010546,2]
[348766069,1736776249246,-500.0,0.00010546,2]
[348766070,1736776249256,-500.0,0.00010546,2]
[348766071,1736776249267,-627.09967616,0.00010546,2]
[348766072,1736776249277,-345.32510631,0.00010546,2]
[348766073,1736776249286,-500.0,0.00010546,2]
[348766074,1736776249296,-500.0,0.00010546,2]
[348766075,1736776249306,-500.0,0.00010546,2]
[348766076,1736776249316,-500.0,0.00010546,2]
[348766077,1736776249326,-500.0,0.00010546,2]
[348766078,1736776249335,-500.0,0.00010546,2]
[348766079,1736776249345,-500.0,0.00010546,2]
[348766080,1736776249355,-500.0,0.00010546,2]
[348766081,1736776249364,-500.0,0.00010546,2]
[348766082,1736776249374,-465.48,0.00010546,2]
[348766083,1736776249384,-500.0,0.00010546,2]
[348766084,1736776249394,-500.0,0.00010546,2]
[348766085,1736776249404,-500.0,0.00010546,2]
[348766086,1736776249413,-500.0,0.00010546,2]
[348766087,1736776249423,-1116.54,0.00010547,2]
[348766088,1736776249432,-1473.48,0.00010547,2]
[348766089,1736776249443,-1006.4,0.00010547,2]
[348766090,1736776249452,-773.79,0.00010547,2]
[348766091,1736776249462,-687.73825975,0.00010624,2]
[348766092,1736776249473,-1936.63,0.00010717,2]
[348766093,1736776249484,-1858.87,0.00010717,2]
[348766094,1736776249494,-500.0,0.00010717,2]
[348766095,1736776249504,-500.0,0.00010717,2]
[348766096,1736776249514,-166.50549518,0.00010717,2]
[348766097,1736776249524,-687.73825975,0.00010738,2]
[348766098,1736776249534,-1140.67258345,0.00010816,3]
[348766099,1736776249547,-705.48,0.00010816,2]
[348766100,1736776249557,-500.0,0.00010816,2]
[348766101,1736776249567,-685.75,0.00010816,2]
[348766102,1736776249577,-205725.64469024,0.00010817,2]
[348766103,1736776249587,-505.99,0.00010817,2]
[348766104,1736776249598,-500.0,0.00010817,2]
[348766105,1736776249608,-1565.28,0.00010817,2]
[348766106,1736776249617,-500.0,0.00010817,2]
[348766107,1736776249627,-500.0,0.00010817,2]
[348766108,1736776249637,-500.0,0.00010817,2]
[348766109,1736776249647,-1938.55,0.00010817,2]
[348766110,1736776249657,-614.34,0.00010817,2]
[348766111,1736776249666,-500.0,0.00010817,2]
[348766112,1736776249676,-652.92,0.00010817,2]
[348766113,1736776249685,-893.86,0.00010817,2]
[348766114,1736776249695,-902.95,0.00010817,2]
[348766115,1736776249704,-596.76,0.00010817,2]
[348766116,1736776249714,-1883.33,0.00010817,2]
[348766117,1736776249724,-1014.93,0.00010817,2]
[348766118,1736776249734,-1197.82,0.00010817,2]
[348766119,1736776249743,-1917.84,0.00010817,2]
[348766120,1736776249752,-1454.9,0.00010817,2]
[348766121,1736776249762,-2653.24,0.00010817,2]
[348766122,1736776249771,-934.46,0.00010817,2]
[348766123,1736776249781,-500.0,0.00010817,2]
[348766124,1736776249792,-835.85,0.00010817,2]